fUSD/lending_fUSD_20241128
["ID","MTS","AMOUNT","RATE_DAILY","PERIOD"]
[343654712,1732793432847,-500.0,9.898e-05,2]
[343654713,1732793432860,-417.79686339,9.898e-05,2]
[343654714,1732793432870,-500.0,9.898e-05,2]
[343654715,1732793432879,-500.0,9.898e-05,2]
[343654716,1732793432889,-500.0,9.898e-05,2]
[343654717,1732793432899,-607.38840296,9.898e-05,2]
[343654718,1732793432908,-500.0,9.898e-05,2]
[343654719,1732793432917,-500.0,9.898e-05,2]
[343654720,1732793432927,-500.0,9.898e-05,2]
[343654721,1732793432936,-451.27151258,9.898e-05,2]
[343654722,1732793432946,-261.36,9.898e-05,2]
[343654723,1732793432957,-500.0,9.898e-05,2]
[343654724,1732793432966,-500.0,9.898e-05,2]
[343654725,1732793432976,-500.0,9.898e-05,2]
[343654726,1732793432986,-500.0,9.898e-05,2]
[343654727,1732793432995,-500.0,9.898e-05,2]
[343654728,1732793433005,-500.0,9.898e-05,2]
[343654729,1732793433014,-500.0,9.898e-05,2]
[343654730,1732793433024,-500.0,9.898e-05,2]
[343654731,1732793433033,-28781.98818079,9.899e-05,2]
[343654732,1732793433052,-2312.0,9.899e-05,2]
[343654735,1732793437561,-400.0,9.589e-05,2]
[343654736,1732793437571,-159.62,9.589e-05,2]
[343654737,1732793437580,-9119.67192804,9.699e-05,2]
[343654738,1732793437592,-346.79666284,9.699e-05,2]
[343654739,1732793437705,-926.8959704,9.699e-05,2]
[343654740,1732793437717,-269.32440006,9.699e-05,2]
[343654741,1732793437748,-921.69,9.699e-05,2]
[343654742,1732793437889,-2278.741901,9.699e-05,2]
[343654743,1732793437901,-2969.24943766,9.699e-05,2]
[343654744,1732793437910,-159.62,9.781e-05,2]
[343654745,1732793437919,-521.86799493,9.873e-05,2]
[343654746,1732793437928,-10817.59068172,9.899e-05,2]
[343654747,1732793437940,-2317.41308333,9.899e-05,2]
[343654748,1732793438018,-2793.04898161,9.899e-05,2]
[343654763,1732793439560,-8514.24806472,9.899e-05,2]
[343654764,1732793439572,-6669.39463254,9.899e-05,2]
[343654765,1732793439583,-7326.10356458,9.899e-05,2]
[343654766,1732793439624,-2487.59285026,9.899e-05,2]
[343654767,1732793439685,-16286.55504278,9.899e-05,2]
[343654768,1732793439697,-10142.8895,9.899e-05,2]
[343654769,1732793439725,-661.761126,9.899e-05,2]
[343654770,1732793439735,-417.76166719,9.899e-05,2]
[343654771,1732793439747,-587.24070219,9.899e-05,2]
[343654773,1732793444009,-500.0,9.898e-05,2]
[343654774,1732793444019,-500.0,9.898e-05,2]
[343654775,1732793444029,-926.0741385,9.899e-05,2]
[343654776,1732793444054,-361.98808218,9.899e-05,2]
[343654777,1732793444066,-7604.48,9.899e-05,2]
[343654778,1732793444199,-5974.66063647,9.899e-05,2]
[343654779,1732793444244,-1102.5474651,9.899e-05,2]
[343654782,1732793445530,-759.82642932,9.899e-05,2]
[343654783,1732793445542,-538.70369134,9.899e-05,2]
[343654784,1732793445553,-18730.03485505,9.899e-05,2]
[343654785,1732793445565,-453.35282727,9.899e-05,2]
[343654786,1732793445699,-780.0,9.899e-05,2]
[343654787,1732793445710,-9102.27555,9.899e-05,2]
[343654788,1732793445844,-2225.00000263,9.899e-05,2]
[343654789,1732793445856,-11944.937808,9.899e-05,2]
[343654790,1732793445868,-1589.70721528,9.899e-05,2]
[343654795,1732793541614,10000.0,0.00014,7]
[343654796,1732793606073,10000.0,0.00014,7]
[343654798,1732793791853,10000.0,0.00014,7]
[343654799,1732793897133,10000.0,0.00014,7]
[343654803,1732793928354,150.0,6.96e-05,2]
[343654804,1732793928377,22.77,6.96e-05,2]
[343654809,1732794375939,10000.0,0.00014,7]
[343654821,1732794614418,10000.0,0.00014,7]
[343654860,1732794631978,-282.75,8.101e-05,2]
[343654862,1732794631987,-162.03,8.101e-05,2]
[343654864,1732794631997,-476.66,8.139e-05,2]
[343654866,1732794632007,-518.84500326,8.171e-05,2]
[343654868,1732794632019,-2470.84499674,8.171e-05,2]
[343654870,1732794632028,-2508.7266465,8.19e-05,2]
[343654871,1732794632037,-295.43,8.19e-05,2]
[343654873,1732794632046,-1101.11,8.219e-05,2]
[343654875,1732794632056,-250.0,8.219e-05,2]
[343654877,1732794632066,-300.0,8.226e-05,2]
[343654879,1732794632075,-1540.31,8.227e-05,2]
[343654881,1732794632084,-200.0,8.227e-05,2]
[343654883,1732794632095,-250.0,8.272e-05,2]
[343654885,1732794632104,-2930.69,8.292e-05,2]
[343654887,1732794632113,-5405.50684136,8.322e-05,2]
[343654889,1732794632125,-850.58187084,8.322e-05,2]
[343654891,1732794632138,-497.6912878,8.322e-05,2]
[343654892,1732794632148,-1170.24,8.322e-05,2]
[343654893,1732794632157,-1000.0,8.349e-05,2]
[343654894,1732794632166,-150.0,8.387e-05,2]
[343654895,1732794632175,-9258.85465864,8.388e-05,2]
[343654896,1732794632186,-310.07102485,8.388e-05,2]
[343654899,1732794632218,-331.16805114,8.388e-05,2]
[343654901,1732794632229,-280.63257895,8.388e-05,2]
[343654946,1732794637830,-3556.78,8.388e-05,2]
[343654947,1732794637902,-10162.49368642,8.388e-05,2]
[343654948,1732794637912,-153.77,8.496e-05,2]
[343654949,1732794637922,-1728.84,8.577e-05,2]
[343654950,1732794637931,-154.59,8.727e-05,2]
[343654951,1732794637940,-168.37,8.73e-05,2]
[343654952,1732794637950,-166.48,8.809e-05,2]
[343654953,1732794637963,-184.21776958,9.041e-05,2]
[343654954,1732794637974,-581.43223042,9.041e-05,2]
[343654955,1732794637984,-420.0,9.049e-05,2]
[343654956,1732794637993,-250.0,9.065e-05,2]
[343654957,1732794638003,-973.01,9.065e-05,2]
[343654958,1732794638012,-162.03,9.113e-05,2]
[343654959,1732794638022,-178.29,9.114e-05,2]
[343654960,1732794638031,-363.6,9.178e-05,2]
[343654961,1732794638040,-276.41,9.178e-05,2]
[343654962,1732794638050,-329.1,9.178e-05,2]
[343654963,1732794638060,-150.0,9.178e-05,2]
[343654964,1732794638069,-152.6,9.178e-05,2]
[343654965,1732794638078,-434.59,9.178e-05,2]
[343654966,1732794638087,-434.59,9.178e-05,2]
[343654967,1732794638097,-150.0,9.178e-05,2]
[343654968,1732794638106,-150.0,9.178e-05,2]
[343654969,1732794638116,-363.6,9.178e-05,2]
[343654970,1732794638128,-363.6,9.178e-05,2]
[343654971,1732794638137,-150.0,9.178e-05,2]
[343654972,1732794638147,-434.59,9.178e-05,2]
[343654973,1732794638157,-150.0,9.178e-05,2]
[343654974,1732794638167,-150.0,9.178e-05,2]
[343654975,1732794638176,-434.59,9.178e-05,2]
[343654976,1732794638186,-150.0,9.178e-05,2]
[343654977,1732794638195,-150.0,9.178e-05,2]
[343654978,1732794638205,-363.6,9.178e-05,2]
[343654979,1732794638219,-150.0,9.178e-05,2]
[343654980,1732794638229,-150.0,9.178e-05,2]
[343654981,1732794638238,-434.59,9.178e-05,2]
[343654982,1732794638248,-150.0,9.178e-05,2]
[343654983,1732794638258,-363.6,9.178e-05,2]
[343654984,1732794638267,-150.0,9.178e-05,2]
[343654985,1732794638276,-434.59,9.178e-05,2]
[343654986,1732794638286,-206.32,9.178e-05,2]
[343654987,1732794638297,-150.0,9.178e-05,2]
[343654988,1732794638306,-150.0,9.178e-05,2]
[343654989,1732794638316,-434.59,9.178e-05,2]
[343654990,1732794638326,-150.0,9.178e-05,2]
[343654991,1732794638335,-150.0,9.178e-05,2]
[343654992,1732794638345,-433.55,9.178e-05,2]
[343654993,1732794638354,-150.0,9.178e-05,2]
[343654994,1732794638364,-150.0,9.178e-05,2]
[343654995,1732794638373,-150.0,9.178e-05,2]
[343654996,1732794638382,-1000.0,9.393e-05,2]
[343654997,1732794638392,-400.0,9.589e-05,2]
[343654998,1732794638401,-171.87,9.589e-05,2]
[343654999,1732794638410,-2500.0,9.699e-05,2]
[343655000,1732794638420,-1000.0,9.699e-05,2]
[343655001,1732794638429,-1000.0,9.7e-05,2]
[343655002,1732794638440,-171.87,9.726e-05,2]
[343655003,1732794638449,-150.0,9.794e-05,2]
[343655004,1732794638463,-1765.09708289,9.798e-05,2]
[343655005,1732794638472,-2187.5395,9.799e-05,2]
[343655006,1732794638483,-18136.6127,9.799e-05,2]
[343655007,1732794638492,-55581.13848669,9.799e-05,2]
[343655009,1732794638512,-2466.37316887,9.799e-05,2]
[343655010,1732794638527,-442.46820175,9.799e-05,2]
[343655014,1732794639841,-298.2975,9.799e-05,2]
[343655015,1732794639935,-651.75111,9.799e-05,2]
[343655016,1732794639946,-969.379034,9.799e-05,2]
[343655017,1732794640013,-5054.15250003,9.799e-05,2]
[343655018,1732794640091,-3560.6452348,9.799e-05,2]
[343655019,1732794640102,-3333.9505234,9.799e-05,2]
[343655020,1732794640113,-1632.78999999,9.799e-05,2]
[343655036,1732794642788,-2645.23747898,9.799e-05,2]
[343655037,1732794642799,-5120.64916848,9.799e-05,2]
[343655038,1732794642811,-1833.31221,9.799e-05,2]
[343655039,1732794642822,-6367.8308673,9.799e-05,2]
[343655040,1732794642850,-367.38803766,9.799e-05,2]
[343655041,1732794642861,-22603.16736386,9.799e-05,2]
[343655042,1732794642922,-18509.0,9.799e-05,2]
[343655043,1732794642980,-351.94166023,9.799e-05,2]
[343655044,1732794642991,-269.4999974,9.799e-05,2]
[343655045,1732794643002,-4929.59064895,9.799e-05,2]
[343655058,1732794645751,-30639.40420761,9.799e-05,2]
[343655059,1732794645764,-500.0,9.863e-05,2]
[343655060,1732794645774,-625.83,9.863e-05,2]
[343655061,1732794645784,-500.0,9.863e-05,2]
[343655062,1732794645793,-210.98,9.863e-05,2]
[343655063,1732794645802,-500.0,9.863e-05,2]
[343655064,1732794645814,-500.0,9.863e-05,2]
[343655065,1732794645834,-500.0,9.863e-05,2]
[343655066,1732794645853,-500.0,9.863e-05,2]
[343655067,1732794645863,-500.0,9.863e-05,2]
[343655068,1732794645872,-275.39431621,9.863e-05,2]
[343655069,1732794645882,-509.48,9.863e-05,2]
[343655070,1732794645891,-500.0,9.863e-05,2]
[343655071,1732794645901,-500.0,9.863e-05,2]
[343655072,1732794645910,-500.0,9.863e-05,2]
[343655073,1732794645920,-500.0,9.863e-05,2]
[343655074,1732794645930,-500.0,9.863e-05,2]
[343655075,1732794645939,-500.0,9.863e-05,2]
[343655076,1732794645948,-500.0,9.863e-05,2]
[343655077,1732794645957,-171.87,9.863e-05,2]
[343655078,1732794645969,-150.0,9.897e-05,2]
[343655079,1732794645979,-378.38637469,9.898e-05,2]
[343655080,1732794645988,-500.0,9.898e-05,2]
[343655081,1732794645998,-500.0,9.898e-05,2]
[343655082,1732794646007,-500.0,9.898e-05,2]
[343655083,1732794646016,-500.0,9.898e-05,2]
[343655084,1732794646025,-500.0,9.898e-05,2]
[343655085,1732794646034,-500.0,9.898e-05,2]
[343655086,1732794646042,-500.0,9.898e-05,2]
[343655087,1732794646052,-500.0,9.898e-05,2]
[343655088,1732794646060,-500.0,9.898e-05,2]
[343655089,1732794646071,-500.0,9.898e-05,2]
[343655090,1732794646080,-226.95,9.898e-05,2]
[343655091,1732794646089,-217.6792,9.898e-05,2]
[343655092,1732794646098,-310.0662,9.898e-05,2]
[343655093,1732794646107,-1263.4135,9.898e-05,2]
[343655094,1732794646116,-151.0,9.899e-05,2]
[343655095,1732794646125,-442.85625267,9.9e-05,2]
[343655097,1732794646134,-2624.8443752,9.9e-05,2]
[343655098,1732794646143,-1000.0,9.9e-05,2]
[343655099,1732794646152,-587.0,9.954e-05,2]
[343655100,1732794646162,-150.0,9.965e-05,2]
[343655101,1732794646171,-500.0,9.989e-05,2]
[343655102,1732794646180,-500.0,9.989e-05,2]
[343655103,1732794646189,-485.65350682,9.99e-05,2]
[343655104,1732794646197,-485.65350678,9.99e-05,2]
[343655105,1732794646207,-485.65350678,9.99e-05,2]
[343655106,1732794646219,-485.65350678,9.99e-05,2]
[343655107,1732794646228,-485.65350678,9.99e-05,2]
[343655108,1732794646236,-485.65350678,9.99e-05,2]
[343655109,1732794646245,-485.65350678,9.99e-05,2]
[343655110,1732794646255,-485.65350678,9.99e-05,2]
[343655111,1732794646264,-485.65350678,9.99e-05,2]
[343655112,1732794646273,-1742.85939,9.993e-05,2]
[343655113,1732794646283,-1552.2054464,9.993e-05,2]
[343655114,1732794646291,-6201.0703828,9.993e-05,2]
[343655115,1732794646300,-595.883,9.995e-05,2]
[343655116,1732794646310,-18292.69982832,9.996e-05,2]
[343655117,1732794646319,-151.0,9.996e-05,2]
[343655118,1732794646328,-246.01090327,9.998e-05,2]
[343655119,1732794646337,-500.0,9.998e-05,2]
[343655120,1732794646346,-500.0,9.998e-05,2]
[343655121,1732794646356,-528.4,9.998e-05,2]
[343655122,1732794646366,-500.0,9.998e-05,2]
[343655123,1732794646375,-500.0,9.998e-05,2]
[343655124,1732794646384,-500.0,9.998e-05,2]
[343655125,1732794646393,-500.0,9.998e-05,2]
[343655126,1732794646402,-500.0,9.998e-05,2]
[343655127,1732794646411,-500.0,9.998e-05,2]
[343655128,1732794646422,-500.0,9.998e-05,2]
[343655129,1732794646431,-500.0,9.998e-05,2]
[343655130,1732794646443,-500.0,9.998e-05,2]
[343655131,1732794646455,-500.0,9.998e-05,2]
[343655132,1732794646466,-500.0,9.998e-05,2]
[343655133,1732794646476,-500.0,9.998e-05,2]
[343655134,1732794646488,-312.08,9.998e-05,2]
[343655135,1732794646499,-2000.0,9.999e-05,2]
[343655136,1732794646508,-14860.39727848,9.999e-05,2]
[343655137,1732794646518,-2000.0,9.999e-05,2]
[343655138,1732794646527,-4739.5,9.999e-05,2]
[343655139,1732794646536,-151.0,9.999e-05,2]
[343655140,1732794646545,-151.0,9.999e-05,2]
[343655141,1732794646554,-151.0,9.999e-05,2]
[343655142,1732794646563,-503.24251487,9.999e-05,2]
[343655143,1732794646572,-612.12331908,9.999e-05,2]
[343655144,1732794646581,-449.78691772,9.999e-05,2]
[343655145,1732794646590,-309.24496166,9.999e-05,2]
[343655146,1732794646602,-190.75503834,9.999e-05,2]
[343655147,1732794646611,-500.0,9.999e-05,2]
[343655148,1732794646620,-500.0,9.999e-05,2]
[343655149,1732794646629,-500.0,9.999e-05,2]
[343655150,1732794646638,-590.88,9.999e-05,2]
[343655151,1732794646647,-268.36496326,9.999e-05,2]
[343655152,1732794646658,-300.57503674,9.999e-05,2]
[343655153,1732794646667,-372.53496329,9.999e-05,2]
[343655154,1732794646678,-127.46503671,9.999e-05,2]
[343655155,1732794646687,-500.0,9.999e-05,2]
[343655156,1732794646696,-293.65516329,9.999e-05,2]
[343655157,1732794646707,-206.34483671,9.999e-05,2]
[343655158,1732794646718,-500.0,9.999e-05,2]
[343655159,1732794646732,-210.86999594,9.999e-05,2]
[343655160,1732794646744,-289.13000406,9.999e-05,2]
[343655161,1732794646753,-500.0,9.999e-05,2]
[343655162,1732794646764,-500.0,9.999e-05,2]
[343655163,1732794646774,-500.0,9.999e-05,2]
[343655164,1732794646783,-500.0,9.999e-05,2]
[343655165,1732794646793,-500.0,9.999e-05,2]
[343655166,1732794646804,-500.0,9.999e-05,2]
[343655167,1732794646814,-500.0,9.999e-05,2]
[343655168,1732794646823,-500.0,9.999e-05,2]
[343655169,1732794646832,-500.0,9.999e-05,2]
[343655170,1732794646842,-500.0,9.999e-05,2]
[343655171,1732794646851,-500.0,9.999e-05,2]
[343655172,1732794646860,-500.0,9.999e-05,2]
[343655173,1732794646870,-500.0,9.999e-05,2]
[343655174,1732794646879,-366.68,9.999e-05,2]
[343655175,1732794646889,-500.0,9.999e-05,2]
[343655176,1732794646898,-500.0,9.999e-05,2]
[343655177,1732794646907,-500.0,9.999e-05,2]
[343655178,1732794646917,-500.0,9.999e-05,2]
[343655179,1732794646928,-377.36,9.999e-05,2]
[343655180,1732794646937,-500.0,9.999e-05,2]
[343655181,1732794646947,-500.0,9.999e-05,2]
[343655182,1732794646957,-500.0,9.999e-05,2]
[343655183,1732794646969,-500.0,9.999e-05,2]
[343655184,1732794646978,-382.35690347,9.999e-05,2]
[343655185,1732794646987,-500.0,9.999e-05,2]
[343655186,1732794646996,-500.0,9.999e-05,2]
[343655187,1732794647005,-500.0,9.999e-05,2]
[343655188,1732794647015,-500.0,9.999e-05,2]
[343655189,1732794647024,-500.0,9.999e-05,2]
[343655190,1732794647033,-545.46628858,9.999e-05,2]
[343655191,1732794647042,-500.0,9.999e-05,2]
[343655192,1732794647052,-500.0,9.999e-05,2]
[343655193,1732794647061,-500.0,9.999e-05,2]
[343655194,1732794647070,-500.0,9.999e-05,2]
[343655195,1732794647079,-500.0,9.999e-05,2]
[343655196,1732794647087,-434.72633671,9.999e-05,2]
[343655197,1732794647096,-500.0,9.999e-05,2]
[343655198,1732794647105,-500.0,9.999e-05,2]
[343655199,1732794647114,-500.0,9.999e-05,2]
[343655200,1732794647123,-500.0,9.999e-05,2]
[343655201,1732794647133,-500.0,9.999e-05,2]
[343655202,1732794647143,-500.0,9.999e-05,2]
[343655203,1732794647152,-500.0,9.999e-05,2]
[343655204,1732794647161,-500.0,9.999e-05,2]
[343655205,1732794647170,-500.0,9.999e-05,2]
[343655206,1732794647179,-500.0,9.999e-05,2]
[343655207,1732794647187,-271.85518771,9.999e-05,2]
[343655208,1732794647197,-500.0,9.999e-05,2]
[343655209,1732794647206,-500.0,9.999e-05,2]
[343655210,1732794647215,-500.0,9.999e-05,2]
[343655211,1732794647225,-500.0,9.999e-05,2]
[343655212,1732794647234,-500.0,9.999e-05,2]
[343655213,1732794647243,-460.4,9.999e-05,2]
[343655214,1732794647252,-500.0,9.999e-05,2]
[343655215,1732794647261,-500.0,9.999e-05,2]
[343655216,1732794647270,-500.0,9.999e-05,2]
[343655217,1732794647279,-500.0,9.999e-05,2]
[343655218,1732794647288,-500.0,9.999e-05,2]
[343655219,1732794647298,-500.0,9.999e-05,2]
[343655220,1732794647307,-500.0,9.999e-05,2]
[343655221,1732794647317,-266.5,9.999e-05,2]
[343655222,1732794647326,-500.0,9.999e-05,2]
[343655223,1732794647335,-500.0,9.999e-05,2]
[343655224,1732794647344,-542.65,9.999e-05,2]
[343655225,1732794647353,-500.0,9.999e-05,2]
[343655226,1732794647363,-500.0,9.999e-05,2]
[343655227,1732794647372,-500.0,9.999e-05,2]
[343655228,1732794647382,-500.0,9.999e-05,2]
[343655229,1732794647392,-500.0,9.999e-05,2]
[343655230,1732794647402,-500.0,9.999e-05,2]
[343655231,1732794647599,-500.0,9.999e-05,2]
[343655232,1732794647610,-500.0,9.999e-05,2]
[343655233,1732794647620,-500.0,9.999e-05,2]
[343655234,1732794647631,-577.56444426,9.999e-05,2]
[343655235,1732794647641,-500.0,9.999e-05,2]
[343655236,1732794647651,-174.7022485,9.999e-05,2]
[343655237,1732794647662,-500.0,9.999e-05,2]
[343655238,1732794647671,-500.0,9.999e-05,2]
[343655239,1732794647681,-500.0,9.999e-05,2]
[343655240,1732794647691,-343.24,9.999e-05,2]
[343655241,1732794647701,-500.0,9.999e-05,2]
[343655242,1732794647710,-500.0,9.999e-05,2]
[343655243,1732794647722,-500.0,9.999e-05,2]
[343655244,1732794647733,-500.0,9.999e-05,2]
[343655245,1732794647743,-500.0,9.999e-05,2]
[343655246,1732794647752,-500.0,9.999e-05,2]
[343655247,1732794647762,-500.0,9.999e-05,2]
[343655248,1732794647772,-500.0,9.999e-05,2]
[343655249,1732794647782,-500.0,9.999e-05,2]
[343655250,1732794647792,-500.0,9.999e-05,2]
[343655251,1732794647802,-500.0,9.999e-05,2]
[343655252,1732794647814,-500.0,9.999e-05,2]
[343655253,1732794647823,-500.0,9.999e-05,2]
[343655254,1732794647833,-500.0,9.999e-05,2]
[343655255,1732794647843,-500.0,9.999e-05,2]
[343655256,1732794647852,-500.0,9.999e-05,2]
[343655257,1732794647862,-500.0,9.999e-05,2]
[343655258,1732794647871,-500.0,9.999e-05,2]
[343655259,1732794647880,-500.0,9.999e-05,2]
[343655260,1732794647890,-500.0,9.999e-05,2]
[343655261,1732794647900,-500.0,9.999e-05,2]
[343655262,1732794647910,-500.0,9.999e-05,2]
[343655263,1732794647919,-500.0,9.999e-05,2]
[343655264,1732794647928,-293.91711439,9.999e-05,2]
[343655265,1732794647937,-500.0,9.999e-05,2]
[343655266,1732794647947,-500.0,9.999e-05,2]
[343655267,1732794647956,-427.02,9.999e-05,2]
[343655268,1732794647967,-500.0,9.999e-05,2]
[343655269,1732794647977,-500.0,9.999e-05,2]
[343655270,1732794647987,-500.0,9.999e-05,2]
[343655271,1732794647996,-500.0,9.999e-05,2]
[343655272,1732794648005,-500.0,9.999e-05,2]
[343655273,1732794648015,-500.0,9.999e-05,2]
[343655274,1732794648025,-500.0,9.999e-05,2]
[343655275,1732794648034,-500.0,9.999e-05,2]
[343655276,1732794648044,-500.0,9.999e-05,2]
[343655277,1732794648053,-500.0,9.999e-05,2]
[343655278,1732794648062,-500.0,9.999e-05,2]
[343655279,1732794648072,-500.0,9.999e-05,2]
[343655280,1732794648081,-500.0,9.999e-05,2]
[343655281,1732794648090,-500.0,9.999e-05,2]
[343655282,1732794648099,-500.0,9.999e-05,2]
[343655283,1732794648108,-500.0,9.999e-05,2]
[343655284,1732794648117,-500.0,9.999e-05,2]
[343655285,1732794648127,-500.0,9.999e-05,2]
[343655286,1732794648136,-500.0,9.999e-05,2]
[343655287,1732794648146,-500.0,9.999e-05,2]
[343655288,1732794648155,-468.67813657,9.999e-05,2]
[343655289,1732794648164,-29625.26893123,9.999e-05,2]
[343655290,1732794648177,-536.53736174,9.999e-05,2]
[343655291,1732794648195,-3465.4935133,9.999e-05,2]
[343655292,1732794648207,-545.69968983,9.999e-05,2]
[343655293,1732794648221,-6314.96944,9.999e-05,2]
[343655294,1732794648231,-1071.51999111,9.999e-05,2]
[343655295,1732794648242,-1540.0,9.999e-05,2]
[343655296,1732794770403,10000.0,0.00014,7]
[343655337,1732795748403,987.6742928,8.219e-05,5]
[343655362,1732795831905,-2476.2648,8.071e-05,2]
[343655364,1732795831916,-1099.31,8.219e-05,2]
[343655366,1732795831926,-3658.08642231,8.687e-05,2]
[343655369,1732795831959,-1228.47,8.687e-05,2]
[343655373,1732795832017,-380.7422355,8.687e-05,2]
[343655374,1732795832029,-17194.82134219,8.687e-05,2]
[343655375,1732795832039,-200.0,8.705e-05,2]
[343655377,1732795832048,-250.0,8.707e-05,2]
[343655379,1732795832058,-192.49,8.731e-05,2]
[343655381,1732795832068,-770.15,8.733e-05,2]
[343655383,1732795832078,-250.0,8.744e-05,2]
[343655385,1732795832088,-250.0,8.757e-05,2]
[343655387,1732795832098,-1406.88,8.848e-05,2]
[343655389,1732795832107,-1000.0,8.936e-05,2]
[343655391,1732795832121,-166.48,8.947e-05,2]
[343655393,1732795832130,-172.26,9.424e-05,2]
[343655395,1732795832140,-937.59015637,9.5e-05,2]
[343655397,1732795832151,-400.0,9.589e-05,2]
[343655399,1732795832160,-158.64,9.589e-05,2]
[343655401,1732795832170,-2698.0,9.605e-05,2]
[343655403,1732795832179,-150.0,9.669e-05,2]
[343655405,1732795832189,-1372.87,9.67e-05,2]
[343655407,1732795832200,-395.83,9.67e-05,2]
[343655409,1732795832209,-1148.21,9.67e-05,2]
[343655411,1732795832218,-3263.79,9.67e-05,2]
[343655413,1732795832228,-999.99,9.67e-05,2]
[343655415,1732795832237,-1099.1,9.67e-05,2]
[343655417,1732795832246,-150.99,9.67e-05,2]
[343655419,1732795832255,-4877.51,9.67e-05,2]
[343655421,1732795832268,-1700.59,9.67e-05,2]
[343655423,1732795832278,-499.99,9.67e-05,2]
[343655425,1732795832286,-68825.74,9.67e-05,2]
[343655427,1732795832296,-499.25,9.67e-05,2]
[343655429,1732795832306,-290.53,9.67e-05,2]
[343655431,1732795832315,-1436.06,9.67e-05,2]
[343655433,1732795832325,-9999.99,9.67e-05,2]
[343655435,1732795832335,-17295.86,9.67e-05,2]
[343655437,1732795832344,-150.99,9.67e-05,2]
[343655439,1732795832354,-9999.99,9.67e-05,2]
[343655441,1732795832364,-1207.3663,9.699e-05,2]
[343655443,1732795832373,-1000.0,9.7e-05,2]
[343655444,1732795832382,-158.64,9.749e-05,2]
[343655446,1732795832391,-150.0,9.79e-05,2]
[343655449,1732795832401,-1914.0,9.8e-05,2]
[343655452,1732795832411,-192.49,9.823e-05,2]
[343655455,1732795832419,-500.0,9.863e-05,2]
[343655456,1732795832429,-2500.0,9.874e-05,2]
[343655458,1732795832439,-1894.54,9.89e-05,2]
[343655460,1732795832449,-5143.9975,9.899e-05,2]
[343655462,1732795832459,-1662.5563,9.899e-05,2]
[343655464,1732795832468,-7218.11436739,9.9e-05,2]
[343655466,1732795832478,-158.64,9.909e-05,2]
[343655469,1732795832487,-8500.0,9.965e-05,2]
[343655472,1732795832496,-500.0,9.973e-05,2]
[343655475,1732795832505,-503.64091238,9.973e-05,2]
[343655478,1732795832518,-2209.52213732,9.974e-05,2]
[343655482,1732795832534,-6290.47786268,9.974e-05,2]
[343655485,1732795832544,-2879.11364732,9.982e-05,2]
[343655489,1732795832555,-5620.88635268,9.982e-05,2]
[343655491,1732795832565,-3342.02,9.989e-05,2]
[343655493,1732795832574,-512.74,9.991e-05,2]
[343655495,1732795832583,-1419.60974413,9.991e-05,2]
[343655498,1732795832610,-7080.39025587,9.991e-05,2]
[343655500,1732795832620,-5038.369686,9.993e-05,2]
[343655502,1732795832629,-1403.5076748,9.993e-05,2]
[343655504,1732795832639,-1249.9759128,9.993e-05,2]
[343655506,1732795832648,-500.0,9.998e-05,2]
[343655508,1732795832657,-500.0,9.998e-05,2]
[343655510,1732795832666,-500.0,9.998e-05,2]
[343655512,1732795832676,-342.4633288,9.998e-05,2]
[343655514,1732795832685,-219.86149084,9.998e-05,2]
[343655516,1732795832695,-596.50348932,9.998e-05,2]
[343655518,1732795832704,-500.0,9.998e-05,2]
[343655520,1732795832713,-500.0,9.998e-05,2]
[343655522,1732795832723,-500.0,9.998e-05,2]
[343655524,1732795832732,-3342.02,9.998e-05,2]
[343655526,1732795832741,-500.0,9.998e-05,2]
[343655528,1732795832752,-151.0,9.999e-05,2]
[343655530,1732795832760,-151.0,9.999e-05,2]
[343655532,1732795832771,-13234.50625548,9.999e-05,2]
[343655534,1732795832783,-850.03632916,9.999e-05,2]
[343655536,1732795832794,-473.44146767,9.999e-05,2]
[343655538,1732795832805,-4480.0,9.999e-05,2]
[343655541,1732795832816,-1275.01166297,9.999e-05,2]
[343655543,1732795832828,-11692.52861562,9.999e-05,2]
[343655545,1732795832839,-405.35,9.999e-05,2]
[343655594,1732795838149,-1911.65,9.999e-05,2]
[343655595,1732795838361,-6406.2259691,9.999e-05,2]